bitfinex-derivatives/quotes_SOLF0:USTF0_20220102
["timestamp","ask_amount","ask_price","bid_price","bid_amount"]
[1641095265085,11.96038625,178.18,178.14,2.02013752]
[1641095265683,13.92003124,178.19,178.15,0.63797852]
[1641095266688,13.92003124,178.19,178.11,0.63797852]
[1641095266889,11.96043752,178.18,178.11,0.63797852]
[1641095267587,1.95959372,178.19,178.11,0.63797852]
[1641095267786,1.95959372,178.19,178.12,2.02323369]
[1641095268186,1.95959372,178.19,178.13,0.63797852]
[1641095268589,11.95791394,178.18,178.13,0.63797852]
[1641095269193,17.99491394,178.18,178.14,2.02323369]
[1641095269789,1.95959372,178.17,178.14,2.02323369]
[1641095269992,1.95959372,178.17,178.15,0.63797852]
[1641095270391,17.99491394,178.18,178.15,0.63797852]
[1641095270891,1.96280603,178.17,178.15,0.63797852]
[1641095271491,11.95791394,178.18,178.15,0.63797852]
[1641095271893,11.95791394,178.18,178.12,0.63797852]
[1641095273297,11.95791394,178.18,178.13,2.02322951]
[1641095273995,11.95791394,178.18,178.14,0.63797852]
[1641095275700,11.95791394,178.18,178.12,0.63797852]
[1641095276398,16.83991394,178.18,178.12,0.63797852]
[1641095276598,16.83991394,178.18,178.13,2.02323638]
[1641095277100,1.96280232,178.17,178.14,0.63797852]
[1641095277599,16.83991394,178.18,178.14,0.63797852]
[1641095277999,16.83991394,178.18,178.12,0.63797852]
[1641095278303,1.96277345,178.17,178.12,0.63797852]
[1641095279002,16.83991394,178.18,178.12,0.63797852]
[1641095279204,16.83991394,178.18,178.13,2.02323458]
[1641095280002,1.96274154,178.17,178.14,0.63797852]
[1641095280604,4.882,178.18,178.14,0.63797852]
[1641095280803,4.882,178.18,178.12,0.63797852]
[1641095281205,1.96273219,178.17,178.12,0.63797852]
[1641095282006,4.882,178.18,178.13,2.02370089]
[1641095282203,14.15182974,178.2,178.13,2.02370089]
[1641095282605,1.96316899,178.17,178.13,2.02370089]
[1641095282804,1.96316899,178.17,178.14,0.63797852]
[1641095283104,1.9631663,178.19,178.14,0.63797852]
[1641095283906,11.96058163,178.18,178.14,0.63797852]
[1641095284309,1.9631663,178.19,178.14,0.63797852]
[1641095284606,1.9631663,178.19,178.12,0.63797852]
[1641095284808,6.9901663,178.19,178.12,0.63797852]
[1641095285208,6.9901663,178.19,178.15,0.63797852]
[1641095285408,11.95933276,178.18,178.15,0.63797852]
[1641095285809,4.9631663,178.18,178.15,0.63797852]
[1641095286109,1.9631663,178.18,178.12,0.63797852]
[1641095286307,27.66479,178.17,178.12,0.63797852]
[1641095286507,41.58820247,178.17,178.12,0.63797852]
[1641095287309,41.58820247,178.17,178.11,0.63797852]
[1641095287513,13.92341247,178.16,178.11,0.63797852]
[1641095288411,13.92341247,178.16,178.12,2.02343909]
[1641095289013,13.92341247,178.16,178.13,0.63797852]
[1641095289412,13.92341247,178.16,178.11,0.63797852]
[1641095290216,13.92341247,178.16,178.12,2.02344745]
[1641095290414,13.92341247,178.16,178.12,8.76044745]
[1641095290813,11.96024617,178.16,178.13,0.63797852]
[1641095291617,11.96024617,178.16,178.11,0.63797852]
[1641095292116,11.96024617,178.16,178.12,2.02344819]
[1641095292615,11.96024617,178.16,178.13,0.63797852]
[1641095294219,11.96024617,178.16,178.11,0.63797852]
[1641095295218,3.98705698,178.12,178.11,4.6250355]
[1641095296320,13.92341247,178.16,178.11,0.63797852]
[1641095296521,13.92341247,178.16,178.11,2.66142]
[1641095296921,13.92341247,178.16,178.12,6.64838813]
[1641095297322,19.53665973,178.16,178.13,0.63797852]
[1641095297822,5.61324726,178.16,178.13,0.63797852]
[1641095298624,13.92681809,178.15,178.13,0.63797852]
[1641095299425,13.92681809,178.15,178.12,0.63797852]
[1641095301726,13.50894419,178.16,178.12,0.63797852]
[1641095302426,13.9262634,178.15,178.12,0.63797852]
[1641095303526,13.9262634,178.15,178.11,0.63797852]
[1641095304229,13.9262634,178.15,178.11,4.62494665]
[1641095304526,13.9262634,178.15,178.12,0.63797852]
[1641095304727,17.57506365,178.16,178.12,6.64860867]
[1641095305328,17.57506365,178.16,178.13,0.63797852]
[1641095305529,1.96362024,178.15,178.13,0.63797852]
[1641095306130,11.96181639,178.15,178.13,0.63797852]
[1641095306630,1.95725809,178.15,178.13,0.63797852]
[1641095306830,1.95725809,178.15,178.11,0.63797852]
[1641095308232,1.95725809,178.15,178.1,0.63797852]
[1641095311838,5.61324726,178.16,178.1,0.63797852]
[1641095312538,3.974196,178.13,178.1,0.63797852]
[1641095313241,1.95742458,178.15,178.1,0.63797852]
[1641095314142,11.96181639,178.14,178.1,4.62494665]
[1641095314741,11.96181639,178.14,178.11,0.63797852]
[1641095314940,1.95742458,178.15,178.11,0.63797852]
[1641095315641,11.96304008,178.14,178.11,0.63797852]
[1641095316344,1.95742458,178.15,178.11,0.63797852]
[1641095316545,1.95742458,178.14,178.11,0.63797852]
[1641095317548,11.96315752,178.14,178.11,0.63797852]
[1641095318850,1.95742458,178.15,178.11,0.63797852]
[1641095319550,11.96304823,178.14,178.11,0.63797852]
[1641095321952,1.95742458,178.15,178.11,0.63797852]
[1641095322553,11.96281928,178.14,178.11,0.63797852]
[1641095322755,11.96281928,178.14,178.11,3.63797852]
[1641095322956,11.96281928,178.14,178.11,8.12954702]
[1641095323154,1.95742458,178.15,178.13,4.49085459]
[1641095323858,11.96075294,178.17,178.14,27.66479]
[1641095324058,11.96075294,178.17,178.14,28.30276852]
[1641095324457,11.96075294,178.17,178.15,0.63797852]
[1641095325859,1.95742458,178.19,178.15,0.63797852]
[1641095326059,1.95742458,178.19,178.14,0.63797852]
[1641095326262,11.93852627,178.18,178.14,0.63797852]
[1641095326463,11.93852627,178.18,178.13,0.63797852]
[1641095326960,11.93852627,178.18,178.12,0.63797852]
[1641095327161,3.97942702,178.14,178.12,4.62494665]
[1641095327761,3.97937797,178.15,178.12,4.62494665]
[1641095327962,3.97937797,178.15,178.13,0.63797852]
[1641095328362,13.89595085,178.19,178.13,0.63797852]
[1641095328560,3.97943606,178.14,178.13,0.63797852]
[1641095328964,37.62772458,178.19,178.13,0.63797852]
[1641095328965,11.93852627,178.17,178.13,0.63797852]
[1641095329564,11.93852627,178.16,178.13,0.63797852]
[1641095329768,11.93852627,178.16,178.12,0.63797852]
[1641095333171,3.97977894,178.13,178.12,0.63797852]
[1641095333769,3.97950867,178.14,178.12,0.63797852]
[1641095334170,3.97950867,178.14,178.11,4.62494665]
[1641095334370,13.89595085,178.18,178.11,4.62494665]
[1641095334570,13.89595085,178.18,178.12,0.63797852]
[1641095335172,3.97950325,178.14,178.12,0.63797852]
[1641095335576,13.89595085,178.18,178.12,0.63797852]
[1641095336273,3.97958108,178.14,178.12,0.63797852]
[1641095336774,11.93852627,178.16,178.12,4.62494665]
[1641095337174,11.93852627,178.16,178.13,0.63797852]
[1641095337375,9.85167502,178.18,178.13,0.63797852]
[1641095338178,11.96161262,178.16,178.13,0.63797852]
[1641095338578,11.96213601,178.15,178.13,0.63797852]
[1641095339081,11.96213601,178.15,178.12,0.63797852]
[1641095339279,9.85167502,178.18,178.12,0.63797852]
[1641095339479,11.96164735,178.16,178.12,4.62494665]
[1641095339979,11.96214104,178.15,178.13,0.63797852]
[1641095340583,11.96214104,178.15,178.12,0.63797852]
[1641095340779,9.85167502,178.18,178.12,0.63797852]
[1641095341280,11.96210111,178.15,178.12,0.63797852]
[1641095342382,9.85167502,178.18,178.12,0.63797852]
[1641095342582,11.94842955,178.16,178.12,0.63797852]
[1641095342780,16.70042955,178.16,178.12,0.63797852]
[1641095342981,11.94842955,178.15,178.12,0.63797852]
[1641095343182,11.94842955,178.15,178.11,0.63797852]
[1641095343580,13.90585413,178.15,178.11,0.63797852]
[1641095343783,1.95742458,178.15,178.11,0.63797852]
[1641095344283,3.98286519,178.12,178.11,0.63797852]
[1641095344783,1.95742458,178.15,178.11,0.63797852]
[1641095345683,3.98285994,178.12,178.11,0.63797852]
[1641095346286,11.94842955,178.16,178.11,0.63797852]
[1641095347085,3.98288586,178.12,178.11,0.63797852]
[1641095347585,11.94842955,178.16,178.11,0.63797852]
[1641095348186,3.98287001,178.12,178.11,0.63797852]
[1641095348893,3.98251147,178.14,178.11,2.65933414]
[1641095349089,3.98251147,178.14,178.11,7.84733414]
[1641095349491,13.90585413,178.18,178.11,7.84733414]
[1641095349690,3.98239604,178.15,178.13,3.98239604]
[1641095350091,3.98239604,178.15,178.14,0.63797852]
[1641095350494,1.95742458,178.18,178.14,0.63797852]
[1641095351091,3.98056848,178.15,178.14,0.63797852]
[1641095351892,1.95742458,178.18,178.14,0.63797852]
[1641095352195,1.95742458,178.18,178.13,0.63797852]
[1641095352596,3.98055882,178.15,178.13,4.62037456]
[1641095353098,3.98055882,178.15,178.14,0.63797852]
[1641095353296,1.95742458,178.18,178.14,0.63797852]
[1641095353996,3.98056224,178.15,178.14,0.63797852]
[1641095354597,11.94842955,178.17,178.14,0.63797852]
[1641095354808,13.19101489,178.15,177.94,4.276]
[1641095355000,22.3828146,177.94,177.87,91.06453149]
[1641095355203,10.0,177.88,177.82,118.24865221]
[1641095355401,10.0,177.88,177.82,30.38865221]
[1641095355603,4.50072509,177.75,177.72,116.11745519]
[1641095355802,4.50072509,177.75,177.66,150.837329]
[1641095356003,7.0,177.67,177.36,31.9442562]
[1641095356204,5.63872678,177.37,177.36,31.9442562]
[1641095356404,3.0,177.43,177.36,30.0642562]
[1641095356603,5.825,177.37,177.26,0.08]
[1641095356804,55.32958,177.27,177.13,27.66479]
[1641095357007,3.0,177.22,176.83,12.46]
[1641095357207,4.346,177.22,176.93,4.0]
[1641095357407,4.346,177.22,176.81,17.5293864]
[1641095357408,5.64636797,177.17,177.0,15.7608071]
[1641095357604,5.6487601,177.09,177.0,15.7608071]
[1641095357805,4.994,177.09,177.0,15.7608071]
[1641095358006,5.6487601,177.09,176.94,1.25300851]
[1641095358206,6.585,177.1,176.94,1.25300851]
[1641095358709,1.95742458,177.09,176.94,1.25300851]
[1641095358907,27.66479,177.06,176.97,27.66479]
[1641095359107,27.66479,177.08,176.97,27.66479]
[1641095359508,27.66479,177.08,176.94,27.66479]
[1641095359809,27.66479,177.08,176.91,5.64828151]
[1641095360207,5.65003673,177.06,176.86,5.65003673]
[1641095360408,13.20906406,177.07,176.84,4.52374015]
[1641095360611,5.65083491,177.03,176.84,4.52374015]
[1641095360907,27.66479,176.98,176.87,5.64971751]
[1641095361108,27.66479,176.98,176.86,33.31466712]
[1641095361509,24.25135483,177.07,176.89,5.6490792]
[1641095361710,24.25135483,177.07,176.93,5.64764352]
[1641095361910,14.25146277,177.03,176.93,5.64764352]
[1641095362111,10.34552739,177.17,176.97,5.64652739]
[1641095362313,4.699,177.17,177.02,5.64493367]
[1641095362513,3.0,177.21,176.99,5.64588979]
[1641095362514,5.64588979,177.19,176.99,5.64588979]
[1641095362811,3.20790297,177.16,177.02,5.64493367]
[1641095363011,27.66479,177.14,177.05,27.66479]
[1641095363211,27.66479,177.17,177.05,27.66479]
[1641095363611,3.20790297,177.13,177.05,27.66479]
[1641095364013,27.66479,177.17,177.05,27.66479]
[1641095364312,13.24544569,177.16,177.03,27.66479]
[1641095364712,10.03738313,177.16,177.03,27.66479]
[1641095364912,27.66479,177.14,177.03,27.66479]
[1641095365514,27.66479,177.14,176.99,4.51992903]
[1641095365515,27.66479,177.14,177.01,4.51950101]
[1641095365713,3.20864893,177.13,177.01,4.51950101]
[1641095366114,5.648122,177.12,177.01,4.51950101]
[1641095366517,3.0,177.11,177.01,4.51950101]
[1641095366718,5.64891964,177.09,177.01,4.51950101]
[1641095366916,27.66479,177.05,177.01,4.51950101]
[1641095368520,27.66479,177.08,177.04,4.51858066]
[1641095368717,23.14714839,177.08,177.04,4.373]
[1641095369518,28.79638716,177.08,177.04,4.373]
[1641095369720,23.14714839,177.08,177.0,5.42367936]
[1641095370020,23.14714839,177.08,177.01,5.42332716]
[1641095370221,27.66479,177.12,177.01,10.03332716]
[1641095370619,27.66479,177.12,177.01,10.03323665]
[1641095371019,27.66479,177.12,177.07,5.42139497]
[1641095371220,3.0,177.18,177.09,5.42070727]
[1641095371520,5.64588979,177.19,177.09,5.42070727]
[1641095371719,3.20799425,177.11,177.09,5.42070727]
[1641095372322,3.20799425,177.18,177.1,0.64159388]
[1641095373122,27.66479,177.2,177.13,5.41961362]
[1641095373324,27.66479,177.2,177.13,12.12561362]
[1641095373523,3.20799425,177.19,177.14,0.64159388]
[1641095374428,3.20799425,177.19,177.17,4.51528554]
[1641095374623,3.20799425,177.19,177.17,9.16528554]
[1641095376124,3.20799425,177.19,177.18,0.64141716]
[1641095376526,3.20799425,177.19,177.17,4.51528554]
[1641095377335,3.20799425,177.19,177.13,7.01927194]
[1641095377529,3.20799425,177.19,177.13,6.706]
[1641095377929,3.20799425,177.19,177.14,0.64146112]
[1641095380831,48.00758167,177.18,177.14,0.64146112]
[1641095381232,3.20799425,177.17,177.14,0.64146112]
[1641095382633,3.20799425,177.18,177.14,0.64146112]
[1641095383934,3.20799425,177.18,177.14,6.06082771]
[1641095384736,3.20799425,177.18,177.15,0.64146112]
[1641095391146,6.20799425,177.18,177.15,0.64146112]
[1641095391344,3.0,177.17,177.15,0.64146112]
[1641095391544,11.92300048,177.16,177.15,0.64146112]
[1641095391945,3.20799425,177.16,177.11,0.64146112]
[1641095392347,35.0026622,177.18,177.11,0.64146112]
[1641095392547,35.0026622,177.18,177.11,6.47246112]
[1641095392748,11.92407762,177.15,177.11,6.47246112]
[1641095392948,11.92407762,177.15,177.12,0.64146112]
[1641095393348,11.92407762,177.16,177.12,0.64146112]
[1641095394150,3.20731842,177.15,177.12,0.64146112]
[1641095394349,3.20731842,177.15,177.13,5.41946954]
[1641095394750,3.20731842,177.15,177.14,0.64146112]
[1641095395249,11.92407762,177.16,177.14,0.64146112]
[1641095395654,11.92407762,177.17,177.14,0.64146112]
[1641095396951,11.92407762,177.18,177.15,5.41913005]
[1641095397152,11.92407762,177.18,177.16,0.64146112]
[1641095397352,3.20697283,177.17,177.16,0.64146112]
[1641095397751,3.20697283,177.17,177.13,29.52391031]
[1641095397952,3.20697283,177.17,177.13,27.66479]
[1641095398954,3.0,177.15,177.14,0.64144793]
[1641095399156,20.65307762,177.15,177.14,0.64144793]
[1641095399355,20.65307762,177.15,177.0,5.64541169]
[1641095399556,23.86005045,177.15,177.01,0.64155055]
[1641095399755,3.0,177.14,177.01,0.64155055]
[1641095400254,3.0,177.13,177.01,0.64155055]
[1641095400453,3.20818305,177.13,177.03,5.64445573]
[1641095400657,31.79466795,177.09,177.06,5.6435001]
[1641095400955,2.74384973,177.13,177.06,5.6435001]
[1641095401155,2.74384973,177.13,177.12,27.66479]
[1641095401357,3.0,177.19,177.12,33.38279]
[1641095401757,3.20697165,177.18,177.13,0.64155055]
[1641095402158,2.7672816,177.18,177.13,6.28298122]
[1641095402758,48.00758167,177.21,177.13,6.28298122]
[1641095402959,48.00758167,177.21,177.19,5.41787648]
[1641095403164,48.00758167,177.21,177.19,33.08266648]
[1641095403359,48.00758167,177.23,177.19,33.08266648]
[1641095403561,3.0,177.2,177.19,33.08266648]
[1641095404260,3.20663023,177.2,177.19,33.72399253]
[1641095404663,3.20663023,177.23,177.19,33.72399253]
[1641095405164,3.20663023,177.23,177.2,0.64132605]
[1641095406465,3.20663023,177.24,177.2,0.64132605]
[1641095407066,6.20663023,177.24,177.2,0.64132605]
[1641095407969,3.20663023,177.23,177.2,0.64132605]
[1641095408869,48.00758167,177.28,177.23,2.2098399]
[1641095409070,48.00758167,177.28,177.23,6.108]
[1641095409269,48.00758167,177.28,177.27,55.32958]
[1641095409470,43.00758167,177.28,177.27,60.19458]
[1641095409669,80.02296408,177.34,177.28,6.49814934]
[1641095409887,47.86440879,177.35,177.28,6.49814934]
[1641095410473,3.20463056,177.34,177.29,1.15958524]
[1641095411274,3.20463056,177.37,177.32,27.66479]
[1641095411475,3.20463056,177.37,177.32,33.24379]
[1641095411673,3.20463056,177.37,177.33,1.15958524]
[1641095412274,3.0,177.34,177.33,1.15958524]
[1641095412474,3.20463056,177.34,177.33,1.15958524]
[1641095413175,3.0,177.36,177.33,1.15958524]
[1641095413479,3.20463056,177.35,177.33,1.15958524]
[1641095414375,3.0,177.38,177.34,5.41314541]
[1641095414777,3.20463056,177.37,177.35,1.15958524]
[1641095415177,3.20463056,177.43,177.36,1.15958524]
[1641095415376,3.0,177.4,177.36,6.53658524]
[1641095415577,3.0,177.4,177.37,1.15958524]
[1641095415778,3.20463056,177.43,177.37,1.15958524]
[1641095415981,6.20463056,177.43,177.38,1.15958524]
[1641095416179,3.0,177.4,177.38,1.15958524]
[1641095416680,3.20463056,177.43,177.38,1.15958524]
[1641095416878,3.0,177.39,177.36,5.377]
[1641095417279,3.0,177.38,177.36,5.377]
[1641095417580,3.0,177.46,177.36,5.377]
[1641095417781,3.0,177.42,177.35,23.42995609]
[1641095417980,3.0,177.42,177.39,5.41155177]
[1641095418280,27.66479,177.47,177.35,22.43345638]
[1641095418485,3.0,177.4,177.35,22.43345638]
[1641095419083,3.0,177.39,177.35,22.43345638]
[1641095420287,18.48545115,177.45,177.35,22.43345638]
[1641095420687,47.84306308,177.42,177.35,22.43345638]
[1641095421089,3.20380271,177.41,177.35,22.43345638]
[1641095421288,47.84306308,177.39,177.35,22.43345638]
[1641095421490,47.84306308,177.39,177.36,5.63412023]
[1641095422289,3.0,177.4,177.35,22.43345638]
[1641095422489,47.84306308,177.41,177.35,22.43345638]
[1641095422689,3.0,177.39,177.35,22.43345638]
[1641095423191,47.84306308,177.4,177.35,28.06773533]
[1641095423390,47.84306308,177.4,177.39,5.41167807]
[1641095423592,47.84306308,177.4,177.39,11.29167807]
[1641095423992,47.84306308,177.43,177.39,11.29167807]
[1641095424191,42.43254451,177.43,177.39,5.88]
[1641095424392,42.43254451,177.43,177.4,6.49373304]
[1641095424893,13.01940027,177.46,177.4,6.49373304]
[1641095425092,80.02296408,177.5,177.4,6.49373304]
[1641095425293,3.0,177.47,177.42,27.66479]
[1641095425496,3.0,177.48,177.42,27.66479]
[1641095425694,3.20290674,177.46,177.42,27.66479]
[1641095425993,3.20290674,177.47,177.42,27.66479]
[1641095426896,3.20290674,177.5,177.42,27.66479]
[1641095427195,80.02296408,177.49,177.42,27.66479]
[1641095427798,3.20290674,177.48,177.42,27.66479]
[1641095428497,3.0,177.46,177.42,27.66479]
[1641095428898,3.0,177.43,177.42,27.66479]
[1641095429096,3.0,177.43,177.4,6.49373304]
[1641095429298,6.20290674,177.43,177.4,6.49373304]
[1641095429497,3.0,177.41,177.4,6.49373304]
[1641095430301,6.20290674,177.41,177.4,6.49373304]
[1641095430702,3.0,177.41,177.4,6.49373304]
[1641095431204,24.23261288,177.44,177.4,6.49373304]
[1641095431406,80.02296408,177.47,177.46,6.49131109]
[1641095431809,98.50841523,177.51,177.46,6.49131109]
[1641095432406,3.20239289,177.5,177.47,1.15789271]
[1641095432805,3.20239289,177.52,177.47,1.15789271]
[1641095433007,3.20239289,177.52,177.47,7.78489271]
[1641095433407,3.20239289,177.52,177.47,35.44968271]
[1641095433610,3.20239289,177.52,177.48,1.15789271]
[1641095433807,3.20239289,177.53,177.48,1.15789271]
[1641095434208,3.20239289,177.56,177.5,5.62967967]
[1641095434606,3.20239289,177.56,177.51,1.15789271]
[1641095434810,48.02511006,177.52,177.51,6.77889271]
[1641095435409,48.02511006,177.55,177.51,6.77889271]
[1641095436009,48.02511006,177.55,177.52,1.15789271]
[1641095437411,3.20135377,177.54,177.52,1.15789271]
[1641095437813,54.22646383,177.54,177.5,27.66479]
[1641095438013,51.22646383,177.54,177.5,27.66479]
[1641095438213,3.0,177.55,177.5,27.66479]
[1641095438614,48.02652758,177.51,177.5,27.66479]
[1641095439415,51.22855507,177.51,177.5,28.57921249]
[1641095440015,80.02296408,177.56,177.5,28.57921249]
[1641095440215,65.02296408,177.56,177.51,6.48945434]
[1641095440817,3.0,177.6,177.51,6.48945434]
[1641095441417,3.0,177.6,177.55,27.66479]
[1641095441617,3.20127345,177.59,177.55,27.66479]
[1641095442218,3.20127345,177.59,177.56,1.58609415]
[1641095442420,3.0,177.57,177.56,1.58609415]
[1641095442819,3.0,177.57,177.52,1.58609415]
[1641095443018,3.0,177.53,177.52,1.58609415]
[1641095443217,3.0,177.53,177.5,27.66479]
[1641095443218,3.0,177.53,177.51,1.58609415]
[1641095443418,3.0,177.52,177.51,1.58609415]
[1641095443617,10.68827345,177.52,177.48,4.50744104]
[1641095443818,7.68827345,177.52,177.48,4.50744104]
[1641095444020,3.0,177.49,177.48,4.50744104]
[1641095444521,5.92846327,177.52,177.43,33.29637191]
[1641095444720,2.74669751,177.49,177.43,33.29637191]
[1641095445419,32.01974661,177.45,177.43,33.29637191]
[1641095445623,23.94134661,177.45,177.43,33.29637191]
[1641095445822,2.74669751,177.44,177.43,33.29637191]
[1641095447023,23.94134661,177.46,177.43,33.29637191]
[1641095447423,3.0,177.52,177.43,33.29637191]
[1641095447721,3.0,177.52,177.48,27.66479]
[1641095447922,3.20212858,177.51,177.48,27.66479]
[1641095448322,5.94882609,177.51,177.48,27.66479]
[1641095448723,2.74669751,177.51,177.48,27.66479]
[1641095448921,2.74669751,177.5,177.48,27.66479]
[1641095449522,2.74669751,177.51,177.48,27.66479]
[1641095450322,48.02443405,177.52,177.48,27.66479]
[1641095450524,48.02443405,177.52,177.48,33.50079]
[1641095451523,48.02443405,177.52,177.48,116.16558]
[1641095451924,48.02443405,177.53,177.48,116.16558]
[1641095453627,3.20193336,177.52,177.48,116.16558]
[1641095454231,50.77113156,177.51,177.48,116.16558]
[1641095456428,48.02443405,177.53,177.48,116.16558]
[1641095457030,48.02443405,177.52,177.48,116.16558]
[1641095457737,48.02443405,177.52,177.51,27.66479]
[1641095458330,48.02443405,177.52,177.51,18.05998743]
[1641095459632,48.02443405,177.52,177.51,20.31913944]
[1641095461737,48.02443405,177.54,177.51,20.31913944]
[1641095462439,48.02443405,177.54,177.52,2.25915201]
[1641095462840,2.74669751,177.53,177.52,2.25915201]
[1641095463843,58.01405675,177.57,177.53,3.74205463]
[1641095464245,51.2257629,177.56,177.54,2.25915201]
[1641095464846,48.02443405,177.56,177.54,2.25915201]
[1641095465145,48.02443405,177.57,177.54,2.25915201]
[1641095465649,48.02443405,177.57,177.54,55.0]
[1641095466245,3.0,177.58,177.55,2.25915201]
[1641095468551,51.02443405,177.58,177.55,2.25915201]
[1641095468948,40.02443405,177.58,177.55,2.25915201]
[1641095469148,37.02443405,177.58,177.55,2.25915201]
[1641095469351,37.02443405,177.58,177.55,57.25915201]
[1641095469751,3.20136064,177.57,177.56,2.25915201]
[1641095470050,37.02443405,177.58,177.56,2.25915201]
[1641095470251,3.0,177.59,177.56,2.25915201]
[1641095470451,3.0,177.59,177.55,37.25190169]
[1641095470651,3.20109383,177.58,177.55,37.25190169]
[1641095471451,3.20109383,177.58,177.55,37.0]
[1641095471651,3.20109383,177.6,177.55,37.0]
[1641095473754,3.0,177.58,177.55,37.0]
[1641095474354,3.20109383,177.57,177.55,37.0]
[1641095475356,3.0,177.56,177.55,37.0]
[1641095476055,3.0,177.56,177.55,39.25876578]
[1641095477855,9.478,177.56,177.55,39.25876578]
[1641095478054,12.6795849,177.56,177.55,1e-08]
[1641095478658,12.6795849,177.56,177.48,18.06051199]
[1641095478956,3.0,177.54,177.48,18.06051199]
[1641095479255,3.0,177.54,177.48,11.6574508]
[1641095479854,48.02419943,177.53,177.48,11.6574508]
[1641095480055,48.02419943,177.53,177.49,1.76216777]
[1641095481159,48.02419943,177.53,177.5,6.48993492]
[1641095481559,48.02419943,177.54,177.51,1.76216777]
[1641095482362,48.02419943,177.55,177.51,1.76216777]
[1641095482761,48.02419943,177.55,177.52,5.62888745]
[1641095482962,48.02419943,177.56,177.52,5.62888745]
[1641095483362,48.02419943,177.56,177.53,1.76216777]
[1641095484270,3.0,177.55,177.51,1.76216777]
[1641095484566,3.0,177.53,177.51,1.76216777]
[1641095484767,3.0,177.53,177.52,1.76216777]
[1641095485467,48.02419943,177.54,177.52,1.76216777]
[1641095485671,51.02419943,177.54,177.52,1.76216777]
[1641095485967,48.02419943,177.54,177.53,1.76216777]
[1641095486167,51.02419943,177.54,177.53,1.76216777]
[1641095488375,3.0,177.54,177.53,1.76216777]
[1641095494280,43.02419943,177.55,177.53,7.01316777]
[1641095494984,3.0,177.56,177.54,1.76216777]
[1641095495589,3.0,177.56,177.55,1.76216777]
[1641095498686,3.0,177.56,177.51,19.82421139]
[1641095499686,9.9896227,177.6,177.51,19.82421139]
[1641095500088,3.0,177.55,177.52,0.93966534]
[1641095502195,24.23205191,177.6,177.52,0.93966534]
[1641095502393,3.0,177.55,177.52,0.93966534]
[1641095503593,3.0,177.55,177.54,6.48834648]
[1641095503993,5.74086265,177.55,177.54,6.48834648]
[1641095504196,5.74086265,177.55,177.54,7.42801182]
[1641095505995,2.74086265,177.55,177.54,7.42801182]
[1641095506494,48.01506487,177.56,177.55,3.7472652]
[1641095506696,48.01506487,177.56,177.54,7.42801182]
[1641095506895,3.0,177.55,177.54,6.48834648]
[1641095507096,48.01506487,177.56,177.54,6.48834648]
[1641095507297,6.99287838,177.56,177.54,18.46860031]
[1641095507695,6.99287838,177.57,177.54,18.46860031]
[1641095508597,12.9896227,177.6,177.55,27.66479]
[1641095508797,80.04804861,177.63,177.55,27.66479]
[1641095508998,25.66479,177.64,177.55,27.66479]
[1641095509200,3.20036622,177.62,177.55,27.66479]
[1641095509601,3.20036622,177.63,177.55,27.66479]
[1641095509805,13.18998892,177.63,177.55,27.66479]
[1641095510400,3.20036622,177.62,177.55,27.66479]
[1641095515607,3.20036622,177.62,177.59,5.4056245]
[1641095517512,48.00332965,177.6,177.59,5.4056245]
[1641095519213,48.00332965,177.6,177.55,26.46970253]
[1641095519413,48.00332965,177.61,177.55,26.46970253]
[1641095520013,3.0,177.6,177.55,26.46970253]
[1641095520214,51.00332965,177.61,177.57,6.48740779]
[1641095521420,3.0,177.6,177.57,6.48740779]
[1641095522218,48.00332965,177.61,177.58,0.93883177]
[1641095522419,48.00332965,177.61,177.58,5.61483177]
[1641095522919,3.0,177.59,177.58,5.61483177]
[1641095523219,3.0,177.59,177.58,4.676]
[1641095523418,48.00332965,177.61,177.58,4.676]
[1641095524321,3.0,177.59,177.58,4.676]
[1641095524518,48.00332965,177.61,177.58,4.676]
[1641095525119,3.0,177.59,177.58,4.676]
[1641095526824,3.0,177.59,177.57,6.48740779]
[1641095527020,48.00332965,177.6,177.57,6.48740779]
[1641095527421,3.0,177.58,177.57,6.48740779]
[1641095538336,51.00332965,177.58,177.57,6.48740779]
[1641095538536,51.00332965,177.58,177.57,7.42671854]
[1641095539536,51.00332965,177.58,177.51,3.4541518]
[1641095539738,51.00332965,177.58,177.5,27.66479]
[1641095539938,3.0,177.58,177.5,27.66479]
[1641095540137,3.0,177.58,177.5,21.26383783]
[1641095540336,32.00474053,177.54,177.5,21.26383783]
[1641095540735,32.00474053,177.54,177.53,5.62841222]
[1641095540937,32.00474053,177.54,177.53,12.05641222]
[1641095541235,32.00474053,177.54,177.53,12.79832463]
[1641095542339,32.00474053,177.55,177.53,12.79832463]
[1641095542943,32.00474053,177.55,177.54,0.74191241]